fUSD/lending_fUSD_20240517
["ID","MTS","AMOUNT","RATE_DAILY","PERIOD"]
[327249027,1715923834167,-500.0,0.00012946,2]
[327249028,1715923834175,-150.0,0.00012951,2]
[327249029,1715923834185,-150.0,0.00012952,2]
[327249030,1715923834195,-150.0,0.00012954,2]
[327249031,1715923834205,-150.0,0.00012955,2]
[327249032,1715923834215,-150.0,0.00012956,2]
[327249033,1715923834224,-150.0,0.00012958,2]
[327249034,1715923834234,-150.0,0.00012958,2]
[327249035,1715923834243,-150.0,0.0001296,2]
[327249036,1715923834253,-150.0,0.00012969,2]
[327249037,1715923834262,-150.0,0.0001297,2]
[327249038,1715923834272,-150.0,0.00012973,2]
[327249039,1715923834282,-150.0,0.00012976,2]
[327249040,1715923834292,-150.0,0.0001298,2]
[327249041,1715923834301,-500.0,0.00012981,2]
[327249042,1715923834311,-150.0,0.00012982,2]
[327249043,1715923834321,-150.0,0.00012983,2]
[327249044,1715923834330,-150.0,0.00012984,2]
[327249045,1715923834340,-150.0,0.00012986,2]
[327249046,1715923834350,-350.04,0.00012989,2]
[327249047,1715923834360,-350.04,0.0001299,2]
[327249048,1715923834369,-350.04,0.0001299,2]
[327249049,1715923834379,-151.42,0.0001299,2]
[327249050,1715923834388,-151.42,0.0001299,2]
[327249051,1715923834398,-151.42,0.0001299,2]
[327249052,1715923834408,-151.42,0.0001299,2]
[327249053,1715923834417,-151.42,0.0001299,2]
[327249054,1715923834428,-151.42,0.0001299,2]
[327249055,1715923834437,-151.42,0.0001299,2]
[327249056,1715923834447,-151.42,0.0001299,2]
[327249057,1715923834456,-151.42,0.0001299,2]
[327249058,1715923834466,-151.42,0.0001299,2]
[327249059,1715923834476,-151.42,0.0001299,2]
[327249060,1715923834486,-151.42,0.0001299,2]
[327249061,1715923834495,-151.42,0.0001299,2]
[327249062,1715923834505,-151.42,0.0001299,2]
[327249063,1715923834514,-151.42,0.0001299,2]
[327249064,1715923834524,-151.42,0.0001299,2]
[327249065,1715923834533,-151.42,0.0001299,2]
[327249066,1715923834543,-151.42,0.0001299,2]
[327249067,1715923834552,-151.42,0.0001299,2]
[327249068,1715923834562,-151.42,0.0001299,2]
[327249069,1715923834571,-151.42,0.0001299,2]
[327249070,1715923834582,-151.42,0.0001299,2]
[327249071,1715923834592,-151.42,0.0001299,2]
[327249072,1715923834602,-151.42,0.0001299,2]
[327249073,1715923834611,-151.42,0.0001299,2]
[327249074,1715923834621,-151.42,0.0001299,2]
[327249075,1715923834630,-151.42,0.0001299,2]
[327249076,1715923834640,-151.42,0.0001299,2]
[327249077,1715923834650,-151.42,0.0001299,2]
[327249078,1715923834659,-151.42,0.0001299,2]
[327249079,1715923834669,-151.42,0.0001299,2]
[327249080,1715923834680,-151.42,0.0001299,2]
[327249081,1715923834690,-151.42,0.0001299,2]
[327249082,1715923834699,-151.42,0.0001299,2]
[327249083,1715923834708,-151.42,0.0001299,2]
[327249084,1715923834721,-350.04,0.0001299,2]
[327249085,1715923834730,-151.42,0.0001299,2]
[327249086,1715923834739,-151.42,0.0001299,2]
[327249087,1715923834748,-350.04,0.0001299,2]
[327249088,1715923834759,-350.04,0.0001299,2]
[327249089,1715923834768,-151.42,0.0001299,2]
[327249090,1715923834777,-151.42,0.0001299,2]
[327249091,1715923834787,-350.04,0.0001299,2]
[327249092,1715923834798,-151.42,0.0001299,2]
[327249093,1715923834808,-151.42,0.0001299,2]
[327249094,1715923834817,-151.42,0.0001299,2]
[327249095,1715923834826,-350.04,0.0001299,2]
[327249096,1715923834835,-151.42,0.0001299,2]
[327249097,1715923834845,-151.42,0.0001299,2]
[327249098,1715923834854,-350.04,0.0001299,2]
[327249099,1715923834864,-151.42,0.0001299,2]
[327249100,1715923834873,-151.42,0.0001299,2]
[327249101,1715923834882,-151.42,0.0001299,2]
[327249102,1715923834892,-350.04,0.0001299,2]
[327249103,1715923834902,-151.42,0.0001299,2]
[327249104,1715923834911,-151.42,0.0001299,2]
[327249105,1715923834920,-151.42,0.0001299,2]
[327249106,1715923834931,-151.42,0.0001299,2]
[327249107,1715923834940,-151.42,0.0001299,2]
[327249108,1715923834950,-151.42,0.0001299,2]
[327249109,1715923834960,-151.42,0.0001299,2]
[327249110,1715923834970,-151.42,0.0001299,2]
[327249111,1715923834979,-151.42,0.0001299,2]
[327249112,1715923834989,-151.42,0.0001299,2]
[327249113,1715923834998,-151.42,0.0001299,2]
[327249114,1715923835007,-151.42,0.0001299,2]
[327249115,1715923835017,-151.42,0.0001299,2]
[327249116,1715923835027,-151.42,0.0001299,2]
[327249117,1715923835036,-151.42,0.0001299,2]
[327249118,1715923835045,-151.42,0.0001299,2]
[327249119,1715923835055,-151.42,0.0001299,2]
[327249120,1715923835064,-151.42,0.0001299,2]
[327249121,1715923835074,-151.42,0.0001299,2]
[327249122,1715923835083,-151.42,0.0001299,2]
[327249123,1715923835092,-151.42,0.0001299,2]
[327249124,1715923835102,-151.42,0.0001299,2]
[327249125,1715923835111,-151.42,0.0001299,2]
[327249126,1715923835121,-151.42,0.0001299,2]
[327249127,1715923835130,-151.42,0.0001299,2]
[327249128,1715923835139,-151.42,0.0001299,2]
[327249129,1715923835148,-151.42,0.0001299,2]
[327249130,1715923835158,-151.42,0.0001299,2]
[327249131,1715923835167,-151.42,0.0001299,2]
[327249132,1715923835178,-151.42,0.0001299,2]
[327249133,1715923835188,-151.42,0.0001299,2]
[327249134,1715923835197,-151.42,0.0001299,2]
[327249135,1715923835207,-151.42,0.0001299,2]
[327249136,1715923835216,-151.42,0.0001299,2]
[327249137,1715923835226,-151.42,0.0001299,2]
[327249138,1715923835236,-151.42,0.0001299,2]
[327249139,1715923835245,-151.42,0.0001299,2]
[327249140,1715923835255,-151.42,0.0001299,2]
[327249141,1715923835264,-151.42,0.0001299,2]
[327249142,1715923835273,-151.42,0.0001299,2]
[327249143,1715923835283,-151.42,0.0001299,2]
[327249144,1715923835293,-151.42,0.0001299,2]
[327249145,1715923835303,-151.42,0.0001299,2]
[327249146,1715923835313,-151.42,0.0001299,2]
[327249147,1715923835323,-151.42,0.0001299,2]
[327249148,1715923835333,-151.42,0.0001299,2]
[327249149,1715923835343,-151.42,0.0001299,2]
[327249150,1715923835352,-151.42,0.0001299,2]
[327249151,1715923835362,-151.42,0.0001299,2]
[327249152,1715923835371,-171.13,0.0001299,2]
[327249153,1715923835381,-1552.5192886,0.00012991,2]
[327249154,1715923835390,-1273.8736168,0.00012991,2]
[327249155,1715923835400,-995.227945,0.00012991,2]
[327249156,1715923835409,-716.5822732,0.00012991,2]
[327249157,1715923835418,-437.9366014,0.00012991,2]
[327249158,1715923835430,-3303.7724102,0.00012991,2]
[327249159,1715923835439,-2715.6257562,0.00012991,2]
[327249160,1715923835448,-2127.4791022,0.00012991,2]
[327249161,1715923835458,-1539.3324482,0.00012991,2]
[327249162,1715923835467,-951.1857942,0.00012991,2]
[327249163,1715923835477,-150.0,0.00012994,2]
[327249164,1715923835487,-1831.1649604,0.00012996,2]
[327249165,1715923835497,-162.3158329,0.00012998,2]
[327249166,1715923835507,-1000.0,0.00012998,2]
[327249167,1715923835517,-408.34836646,0.00012998,2]
[327249168,1715923835526,-3005.85209751,0.00012998,2]
[327249169,1715923835537,-155.0,0.00012998,2]
[327249170,1715923835546,-157.051714,0.00012998,2]
[327249171,1715923835556,-157.051714,0.00012998,2]
[327249172,1715923835566,-173.051714,0.00012998,2]
[327249173,1715923835575,-171.051714,0.00012998,2]
[327249174,1715923835585,-500.0,0.00012998,2]
[327249175,1715923835594,-500.0,0.00012998,2]
[327249176,1715923835603,-500.0,0.00012998,2]
[327249177,1715923835615,-601.33935973,0.00012998,2]
[327249178,1715923835625,-500.0,0.00012998,2]
[327249179,1715923835634,-500.0,0.00012998,2]
[327249180,1715923835643,-500.0,0.00012998,2]
[327249181,1715923835653,-627.48276094,0.00012998,2]
[327249182,1715923835662,-500.0,0.00012998,2]
[327249183,1715923835672,-500.0,0.00012998,2]
[327249184,1715923835683,-604.250357,0.00012998,2]
[327249185,1715923835692,-314.11574525,0.00012998,2]
[327249186,1715923835701,-500.0,0.00012998,2]
[327249187,1715923835710,-500.0,0.00012998,2]
[327249188,1715923835724,-500.0,0.00012998,2]
[327249189,1715923835733,-213.74735621,0.00012998,2]
[327249190,1715923835743,-500.0,0.00012998,2]
[327249191,1715923835752,-500.0,0.00012998,2]
[327249192,1715923835763,-500.0,0.00012998,2]
[327249193,1715923835772,-500.0,0.00012998,2]
[327249194,1715923835782,-500.0,0.00012998,2]
[327249195,1715923835791,-500.0,0.00012998,2]
[327249196,1715923835802,-500.0,0.00012998,2]
[327249197,1715923835812,-500.0,0.00012998,2]
[327249198,1715923835822,-500.0,0.00012998,2]
[327249199,1715923835831,-500.0,0.00012998,2]
[327249200,1715923835840,-500.0,0.00012998,2]
[327249201,1715923835849,-500.0,0.00012998,2]
[327249202,1715923835858,-500.0,0.00012998,2]
[327249203,1715923835868,-500.0,0.00012998,2]
[327249204,1715923835877,-500.0,0.00012998,2]
[327249205,1715923835887,-500.0,0.00012998,2]
[327249206,1715923835896,-299.60787188,0.00012998,2]
[327249207,1715923835906,-624.73492459,0.00012998,2]
[327249208,1715923835915,-332.1170081,0.00012998,2]
[327249209,1715923835924,-358.81,0.00012998,2]
[327249210,1715923835934,-500.0,0.00012998,2]
[327249211,1715923835943,-500.0,0.00012998,2]
[327249212,1715923835952,-500.0,0.00012998,2]
[327249213,1715923835962,-500.0,0.00012998,2]
[327249214,1715923835971,-500.0,0.00012998,2]
[327249215,1715923835980,-446.21883423,0.00012998,2]
[327249216,1715923835990,-502.84354661,0.00012998,2]
[327249217,1715923835999,-500.0,0.00012998,2]
[327249218,1715923836008,-500.0,0.00012998,2]
[327249219,1715923836018,-484.01246126,0.00012998,2]
[327249220,1715923836027,-500.0,0.00012998,2]
[327249221,1715923836036,-500.0,0.00012998,2]
[327249222,1715923836046,-335.16060901,0.00012998,2]
[327249223,1715923836055,-500.0,0.00012998,2]
[327249224,1715923836065,-500.0,0.00012998,2]
[327249225,1715923836074,-500.0,0.00012998,2]
[327249226,1715923836083,-500.0,0.00012998,2]
[327249227,1715923836092,-500.0,0.00012998,2]
[327249228,1715923836101,-500.0,0.00012998,2]
[327249229,1715923836110,-500.0,0.00012998,2]
[327249230,1715923836120,-500.0,0.00012998,2]
[327249231,1715923836129,-500.0,0.00012998,2]
[327249232,1715923836139,-500.0,0.00012998,2]
[327249233,1715923836149,-500.0,0.00012998,2]
[327249234,1715923836158,-3654.093,0.00012998,2]
[327249235,1715923836167,-225.64718462,0.00012999,2]
[327249236,1715923836177,-541.20505448,0.00012999,2]
[327249237,1715923836186,-528.34079521,0.00012999,2]
[327249238,1715923836196,-500.0,0.00012999,2]
[327249239,1715923836205,-500.0,0.00012999,2]
[327249240,1715923836214,-500.0,0.00012999,2]
[327249241,1715923836223,-500.0,0.00012999,2]
[327249242,1715923836232,-500.0,0.00012999,2]
[327249243,1715923836241,-188.34702727,0.00012999,2]
[327249244,1715923836250,-500.0,0.00012999,2]
[327249245,1715923836260,-500.0,0.00012999,2]
[327249246,1715923836269,-535.34314713,0.00012999,2]
[327249247,1715923836278,-508.27751223,0.00012999,2]
[327249248,1715923836287,-150.0,0.00012999,2]
[327249249,1715923836297,-280.73169011,0.00012999,2]
[327249250,1715923836306,-500.0,0.00012999,2]
[327249251,1715923836315,-500.0,0.00012999,2]
[327249252,1715923836324,-177.082132,0.00012999,2]
[327249253,1715923836340,-500.0,0.00012999,2]
[327249254,1715923836353,-503.88943043,0.00012999,2]
[327249255,1715923836363,-494.49753203,0.00012999,2]
[327249256,1715923836373,-500.0,0.00012999,2]
[327249257,1715923836383,-500.0,0.00012999,2]
[327249258,1715923836393,-500.0,0.00012999,2]
[327249259,1715923836403,-500.0,0.00012999,2]
[327249260,1715923836413,-517.98594705,0.00012999,2]
[327249261,1715923836423,-500.0,0.00012999,2]
[327249262,1715923836433,-500.0,0.00012999,2]
[327249263,1715923836444,-167.72894213,0.00012999,2]
[327249264,1715923836665,-449.89195374,0.00012999,2]
[327249265,1715923836675,-253.22,0.00012999,2]
[327249266,1715923836686,-306.63,0.00012999,2]
[327249267,1715923836695,-403.44466058,0.00012999,2]
[327249268,1715923836705,-500.0,0.00012999,2]
[327249269,1715923836715,-500.0,0.00012999,2]
[327249270,1715923836728,-500.0,0.00012999,2]
[327249271,1715923836738,-500.0,0.00012999,2]
[327249272,1715923836747,-500.0,0.00012999,2]
[327249273,1715923836758,-500.0,0.00012999,2]
[327249274,1715923836768,-500.0,0.00012999,2]
[327249275,1715923836778,-500.0,0.00012999,2]
[327249276,1715923836787,-500.0,0.00012999,2]
[327249277,1715923836798,-500.0,0.00012999,2]
[327249278,1715923836808,-500.0,0.00012999,2]
[327249279,1715923836818,-500.0,0.00012999,2]
[327249280,1715923836827,-500.0,0.00012999,2]
[327249281,1715923836837,-279.55623197,0.00012999,2]
[327249282,1715923836847,-536.26799508,0.00012999,2]
[327249283,1715923836856,-346.18359584,0.00012999,2]
[327249284,1715923836867,-278.84930912,0.00012999,2]
[327249285,1715923836876,-500.0,0.00012999,2]
[327249286,1715923836885,-500.0,0.00012999,2]
[327249287,1715923836899,-500.0,0.00012999,2]
[327249288,1715923836910,-500.0,0.00012999,2]
[327249289,1715923836920,-500.0,0.00012999,2]
[327249290,1715923836930,-500.0,0.00012999,2]
[327249291,1715923836940,-500.0,0.00012999,2]
[327249292,1715923836950,-500.0,0.00012999,2]
[327249293,1715923836960,-500.0,0.00012999,2]
[327249294,1715923836970,-500.0,0.00012999,2]
[327249295,1715923836980,-500.0,0.00012999,2]
[327249296,1715923836990,-500.0,0.00012999,2]
[327249297,1715923837000,-500.0,0.00012999,2]
[327249298,1715923837010,-472.80847448,0.00012999,2]
[327249299,1715923837020,-500.0,0.00012999,2]
[327249300,1715923837030,-500.0,0.00012999,2]
[327249301,1715923837040,-500.0,0.00012999,2]
[327249302,1715923837050,-500.0,0.00012999,2]
[327249303,1715923837059,-500.0,0.00012999,2]
[327249304,1715923837069,-373.94089372,0.00012999,2]
[327249305,1715923837079,-500.0,0.00012999,2]
[327249306,1715923837089,-500.0,0.00012999,2]
[327249307,1715923837098,-509.08905621,0.00012999,2]
[327249308,1715923837108,-244.64,0.00012999,2]
[327249309,1715923837119,-500.0,0.00012999,2]
[327249310,1715923837130,-500.0,0.00012999,2]
[327249311,1715923837139,-500.0,0.00012999,2]
[327249312,1715923837149,-500.0,0.00012999,2]
[327249313,1715923837159,-500.0,0.00012999,2]
[327249314,1715923837170,-212.46,0.00012999,2]
[327249315,1715923837180,-500.0,0.00012999,2]
[327249316,1715923837189,-500.0,0.00012999,2]
[327249317,1715923837199,-500.0,0.00012999,2]
[327249318,1715923837209,-500.0,0.00012999,2]
[327249319,1715923837219,-301.64130267,0.00012999,2]
[327249320,1715923837229,-500.0,0.00012999,2]
[327249321,1715923837238,-500.0,0.00012999,2]
[327249322,1715923837247,-500.0,0.00012999,2]
[327249323,1715923837258,-500.0,0.00012999,2]
[327249324,1715923837267,-500.0,0.00012999,2]
[327249325,1715923837277,-500.0,0.00012999,2]
[327249326,1715923837286,-500.0,0.00012999,2]
[327249327,1715923837296,-500.0,0.00012999,2]
[327249328,1715923837305,-500.0,0.00012999,2]
[327249329,1715923837315,-500.0,0.00012999,2]
[327249330,1715923837324,-500.0,0.00012999,2]
[327249331,1715923837334,-500.0,0.00012999,2]
[327249332,1715923837345,-500.0,0.00012999,2]
[327249333,1715923837355,-313.62002064,0.00012999,2]
[327249334,1715923837366,-500.0,0.00012999,2]
[327249335,1715923837375,-500.0,0.00012999,2]
[327249336,1715923837385,-500.0,0.00012999,2]
[327249337,1715923837395,-500.0,0.00012999,2]
[327249338,1715923837404,-500.0,0.00012999,2]
[327249339,1715923837414,-418.1955506,0.00012999,2]
[327249340,1715923837423,-444.44424834,0.00012999,2]
[327249341,1715923837434,-500.0,0.00012999,2]
[327249342,1715923837443,-500.0,0.00012999,2]
[327249343,1715923837453,-500.0,0.00012999,2]
[327249344,1715923837463,-315.29,0.00012999,2]
[327249345,1715923837472,-500.0,0.00012999,2]
[327249346,1715923837482,-500.0,0.00012999,2]
[327249347,1715923837492,-595.09381824,0.00012999,2]
[327249348,1715923837502,-369.0908445,0.00012999,2]
[327249349,1715923837511,-500.0,0.00012999,2]
[327249350,1715923837522,-304.19,0.00012999,2]
[327249351,1715923837531,-500.0,0.00012999,2]
[327249352,1715923837541,-500.0,0.00012999,2]
[327249353,1715923837551,-627.86064002,0.00012999,2]
[327249354,1715923837560,-500.0,0.00012999,2]
[327249355,1715923837570,-500.0,0.00012999,2]
[327249356,1715923837580,-500.0,0.00012999,2]
[327249357,1715923837589,-269.22608946,0.00012999,2]
[327249358,1715923837599,-384.12161836,0.00012999,2]
[327249359,1715923837608,-500.0,0.00012999,2]
[327249360,1715923837618,-500.0,0.00012999,2]
[327249361,1715923837627,-544.0,0.00012999,2]
[327249362,1715923837637,-1464.0,0.00012999,2]
[327249363,1715923837647,-162.983,0.00012999,2]
[327249364,1715923837656,-576.0,0.00013,2]
[327249365,1715923837666,-393180.1071839,0.00013,2]
[327249366,1715923837676,-262728.82172775,0.00013,2]
[327249367,1715923837893,-101225.55647778,0.00013,2]
[327249368,1715923837902,-37399.70210015,0.00013,2]
[327249369,1715923837921,-282.00189826,0.00012999,2]
[327249370,1715923837930,-256.7259179,0.00013,2]
[327249378,1715923838636,-56898.1958267,0.00013,2]
[327249379,1715923838648,-461.13336206,0.00013,2]
[327249422,1715923840949,-262827.62211676,0.00013,2]
[327249681,1715923843508,-470.28970234,0.00013,2]
[327249683,1715923843520,-918.18164461,0.00013,2]
[327249831,1715923846280,-655.955,0.00012999,2]
[327249832,1715923846546,-122.0596266,0.00012999,2]
[327249833,1715923846556,-4954.20993953,0.00012999,2]
[327249834,1715923994705,1000.0,0.0002,60]
[327249839,1715924085044,200.06477287,0.00023,120]
[327249841,1715924180994,2608.77,9.56e-05,2]
[327249848,1715924832248,2478.33,9.612e-05,2]
[327249855,1715925025207,427.70686892,9.636e-05,2]
[327249864,1715925032423,-778.0146266,0.00011417,2]
[327249865,1715925032433,-150.0,0.00011418,2]
[327249866,1715925032442,-5241.51088467,0.00011419,2]
[327249867,1715925032510,-926.31576345,0.00011419,2]
[327249868,1715925032521,-17365.43717405,0.00011419,2]
[327249869,1715925033575,-10276.12006887,0.00011419,2]
[327249870,1715925033587,-2000.0,0.00011419,2]
[327249871,1715925033599,-1337.88273758,0.00011419,2]
[327249872,1715925033612,-7720.33953008,0.00011419,2]
[327249873,1715925033624,-7520.2478751,0.00011419,2]
[327249874,1715925033635,-351.56071379,0.00011419,2]
[327249875,1715925033646,-469.17,0.00011419,2]
[327249876,1715925033732,-6265.86687206,0.00011419,2]
[327249897,1715925039296,-550.65473018,0.00011419,2]
[327249898,1715925039328,2549.59371498,7.209e-05,2]
[327249899,1715925039485,-56898.1958267,0.00011419,2]
[327249903,1715925041106,-15598.35978302,0.00011419,2]
[327249904,1715925041118,-32870.367,0.00011419,2]
[327249975,1715925133345,2282.67480183,8.564e-05,2]
[327249976,1715925151936,500.0,0.0002308,120]
[327249977,1715925282036,2414.79,8.671e-05,2]
[327249978,1715925346110,970.08187611,8.671e-05,2]
[327249979,1715925346151,366.62421117,8.671e-05,2]
[327249980,1715925364108,784.29717242,8.671e-05,2]
[327249981,1715925369388,435.66721211,8.671e-05,2]
[327249982,1715925424851,49363.83246327,0.00023,120]
[327249986,1715925593259,6064.0,0.00017,30]
[327249988,1715925778834,2351.4,8.386e-05,2]
[327249989,1715925782188,158.54,8.219e-05,2]
[327249990,1715925902709,167848.52612643,8.219e-05,2]
[327249991,1715925902746,3187.45849298,8.219e-05,2]
[327250003,1715926231947,-675.17501982,0.00010264,2]
[327250010,1715926238889,-102.83960678,0.00010264,2]
[327250012,1715926238899,-655.18,0.00010264,2]
[327250013,1715926238908,-452.82,0.00010272,2]
[327250014,1715926238917,-250.0,0.00010272,2]
[327250015,1715926238927,-226.04,0.00010295,2]
[327250016,1715926238936,-435.83,0.000103,2]
[327250017,1715926238945,-451.5,0.00010303,2]
[327250018,1715926238955,-250.0,0.00010341,2]
[327250019,1715926238964,-153.86,0.00010359,2]
[327250020,1715926238973,-1000.0,0.00010379,2]
[327250021,1715926238983,-900.84,0.0001063,15]
[327250022,1715926238992,-2351.4,0.00010649,2]
[327250023,1715926239001,-153.86,0.00010899,2]
[327250026,1715926239010,-200.0,0.00011,2]
[327250028,1715926239019,-414.66,0.00011096,2]
[327250031,1715926239043,-170.78,0.00011096,2]
[327250033,1715926239053,-154.20842833,0.00011328,2]
[327250035,1715926239063,-154.20842833,0.00011329,2]
[327250037,1715926239072,-154.20842833,0.0001133,2]
[327250039,1715926239082,-154.20842833,0.00011331,2]
[327250041,1715926239092,-154.20842833,0.00011333,2]
[327250043,1715926239102,-154.20842833,0.00011334,2]
[327250045,1715926239112,-154.20842833,0.00011335,2]
[327250048,1715926239122,-154.20842833,0.00011336,2]
[327250050,1715926239131,-841.7,0.000114,2]
[327250052,1715926239141,-678.94,0.000114,2]
[327250054,1715926239150,-308.18455351,0.000114,2]
[327250056,1715926239160,-1770.12134,0.00011419,2]
[327250058,1715926239169,-45395.97289977,0.00011419,2]
[327250106,1715926240134,-951.5390096,0.00011419,2]
[327250107,1715926240260,-9762.30535236,0.00011419,2]
[327250140,1715926242815,-4111.7018577,0.00011419,2]
[327250145,1715926245726,-3389.83,0.00011419,2]
[327250146,1715926245844,-545.67799561,0.00011419,2]
[327250147,1715926245856,-32875.27920001,0.00011419,2]
[327250148,1715926245952,-335.30570427,0.00011419,2]
[327250149,1715926245964,-273.31193874,0.00011419,2]
[327250150,1715926246082,-632.25287615,0.00011419,2]
[327250151,1715926246098,-7148.8,0.00011419,2]
[327250152,1715926246110,-602.34,0.00011419,2]
[327250153,1715926246122,-15128.67510005,0.00011419,2]
[327250154,1715926246134,-677.57587675,0.00011419,2]
[327250155,1715926246146,-40761.79173143,0.00011419,2]
[327250156,1715926266673,6001.34613068,8.219e-05,2]
[327250157,1715926266699,62334.55362277,8.219e-05,2]
[327250159,1715926813418,150.0,8.297e-05,2]
[327250160,1715926813442,150.0,8.297e-05,2]
[327250161,1715926813464,150.0,8.297e-05,2]
[327250162,1715926813704,150.0,8.297e-05,2]
[327250163,1715926813728,150.0,8.297e-05,2]
[327250164,1715926813751,150.0,8.297e-05,2]
[327250165,1715926813776,150.0,8.297e-05,2]
[327250166,1715926813799,150.0,8.297e-05,2]
[327250167,1715926813821,150.0,8.297e-05,2]
[327250168,1715926813846,150.0,8.297e-05,2]
[327250169,1715926813870,150.0,8.297e-05,2]
[327250170,1715926813891,150.0,8.297e-05,2]
[327250171,1715926813912,150.0,8.297e-05,2]
[327250172,1715926813934,150.0,8.297e-05,2]
[327250173,1715926813957,16.26,8.297e-05,2]
[327250174,1715926830980,155.37026931,8.297e-05,2]
[327250175,1715926831179,178.67990093,8.297e-05,2]
[327250176,1715926833635,222.53721492,6.223e-05,2]
[327250177,1715926999138,-778.0146266,9.404e-05,2]
[327250178,1715926999161,-289.88,0.00010212,2]
[327250179,1715926999186,-361.2,0.00010223,2]
[327250180,1715926999211,-153.87,0.00010284,2]
[327250181,1715926999237,-236.86,0.00010394,2]
[327250182,1715926999261,-250.0,0.00010437,2]
[327250183,1715926999284,-2116.26,0.00010561,2]
[327250184,1715926999308,-825.77,0.0001063,15]
[327250185,1715926999336,-415.3,0.000107,2]
[327250186,1715926999358,-869.2,0.000107,2]
[327250187,1715926999381,-415.3,0.000107,2]
[327250188,1715926999404,-869.2,0.000107,2]
[327250189,1715927000594,2917.37023655,9.403e-05,2]
[327250190,1715927073585,2010.0,0.0001,2]
[327250191,1715927084647,756.95,0.0001063,15]
[327250194,1715927228798,800.0,0.00010327,2]
[327250196,1715927301130,192.92,0.00010305,2]
[327250197,1715927370219,1604.70513685,8.643e-05,2]
[327250206,1715927432374,-8.79137286,8.642e-05,2]
[327250227,1715927439031,-769.22325374,8.642e-05,2]
[327250228,1715927439041,-230.63475226,8.643e-05,2]
[327250229,1715927439054,-152.40011089,8.643e-05,2]
[327250230,1715927439066,-1987.74,0.00010907,2]
[327250231,1715927439075,-690.72713567,0.00010966,2]
[327250232,1715927439085,-150.0,0.00010999,2]
[327250233,1715927439094,-150.0,0.00011,2]
[327250234,1715927439103,-869.2,0.00011,2]
[327250235,1715927439113,-415.3,0.00011,2]
[327250236,1715927439122,-150.0,0.00011,2]
[327250237,1715927439132,-869.2,0.00011,2]
[327250238,1715927439141,-415.3,0.00011,2]
[327250239,1715927439151,-869.2,0.00011,2]
[327250240,1715927439160,-415.3,0.00011,2]
[327250241,1715927439170,-869.2,0.00011,2]
[327250242,1715927439179,-415.3,0.00011,2]
[327250243,1715927439189,-200.0,0.00011,2]
[327250244,1715927439198,-523.76,0.00011034,2]
[327250245,1715927439208,-351.62,0.00011034,2]
[327250246,1715927439218,-420.52,0.00011034,2]
[327250247,1715927439227,-420.52,0.00011034,2]
[327250248,1715927439236,-523.76,0.00011034,2]
[327250249,1715927439246,-351.62,0.00011034,2]
[327250250,1715927439256,-420.52,0.00011034,2]
[327250251,1715927439265,-351.62,0.00011034,2]
[327250252,1715927439275,-420.52,0.000111,2]
[327250253,1715927439284,-305.79,0.000111,2]
[327250254,1715927439295,-582.0,0.000111,2]
[327250255,1715927439308,-152.71,0.000111,2]